[Event "14e Open International de Quenza"]
[Site "Quenza, France"]
[Date "2025.07.06"]
[Round "9.1"]
[White "Dardha, Daniel"]
[Black "Fressinet, Laurent"]
[Result "1-0"]
[TimeControl "5min+3s"]
[WhiteElo "2627"]
[BlackElo "2605"]

1. e4 {[%clk 00:05:03]} {[%emt 00:00:01]} e5 {[%clk 00:05:03]} {[%emt
00:00:01]} 2. Nf3 {[%clk 00:05:03]} {[%emt 00:00:02]} Nc6 {[%clk 00:05:03]}
{[%emt 00:00:01]} 3. Bc4 {[%clk 00:05:03]} {[%emt 00:00:01]} Nf6 {[%clk
00:05:03]} {[%emt 00:00:02]} 4. d3 {[%clk 00:05:03]} {[%emt 00:00:01]} Bc5
{[%clk 00:05:03]} {[%emt 00:00:01]} 5. Nc3 {[%clk 00:05:03]} {[%emt 00:00:01]}
a6 {[%clk 00:05:03]} {[%emt 00:00:03]} 6. Be3 {[%clk 00:04:59]} {[%emt
00:00:07]} Bxe3 {[%clk 00:04:59]} {[%emt 00:00:08]} 7. fxe3 {[%clk 00:04:59]}
{[%emt 00:00:02]} d6 {[%clk 00:04:59]} {[%emt 00:00:01]} 8. a4 {[%clk
00:04:57]} {[%emt 00:00:05]} Be6 {[%clk 00:04:55]} {[%emt 00:00:07]} 9. b3
{[%clk 00:04:57]} {[%emt 00:00:03]} O-O {[%clk 00:04:49]} {[%emt 00:00:08]} 10.
O-O {[%clk 00:04:57]} {[%emt 00:00:02]} Nb4 {[%clk 00:04:49]} {[%emt 00:00:02]}
11. Qd2 {[%clk 00:04:28]} {[%emt 00:00:33]} Qe7 {[%clk 00:04:40]} {[%emt
00:00:12]} 12. Ne2 {[%clk 00:04:03]} {[%emt 00:00:28]} d5 {[%clk 00:04:06]}
{[%emt 00:00:37]} 13. exd5 {[%clk 00:04:03]} {[%emt 00:00:01]} Bxd5 {[%clk
00:04:06]} {[%emt 00:00:01]} 14. Bxd5 {[%clk 00:03:34]} {[%emt 00:00:31]} Nfxd5
{[%clk 00:03:16]} {[%emt 00:00:52]} 15. e4 {[%clk 00:03:16]} {[%emt 00:00:21]}
Nf6 {[%clk 00:03:09]} {[%emt 00:00:10]} 16. Ng3 {[%clk 00:03:16]} {[%emt
00:00:01]} Qc5+ {[%clk 00:02:30]} {[%emt 00:00:43]} 17. Kh1 {[%clk 00:03:16]}
Rad8 {[%clk 00:02:04]} {[%emt 00:00:29]} 18. Rac1 {[%clk 00:02:35]} {[%emt
00:00:45]} Nc6 {[%clk 00:01:20]} {[%emt 00:00:47]} 19. Qg5 {[%clk 00:02:29]}
{[%emt 00:00:08]} Ne8 {[%clk 00:01:02]} {[%emt 00:00:21]} 20. Nf5 {[%clk
00:02:13]} {[%emt 00:00:19]} f6 {[%clk 00:01:02]} {[%emt 00:00:02]} 21. Qh5
{[%clk 00:02:07]} {[%emt 00:00:09]} g6 {[%clk 00:00:33]} {[%emt 00:00:32]} 22.
Qg4 {[%clk 00:02:07]} {[%emt 00:00:01]} Kh8 {[%clk 00:00:31]} {[%emt 00:00:05]}
23. Ng3 {[%clk 00:02:02]} {[%emt 00:00:08]} Qe7 {[%clk 00:00:30]} {[%emt
00:00:04]} 24. Rf2 {[%clk 00:01:57]} {[%emt 00:00:08]} Nd6 {[%clk 00:00:22]}
{[%emt 00:00:11]} 25. Rcf1 {[%clk 00:01:57]} {[%emt 00:00:01]} Rf7 {[%clk
00:00:22]} 26. Qh4 {[%clk 00:01:12]} {[%emt 00:00:49]} Rdf8 {[%clk 00:00:19]}
{[%emt 00:00:06]} 27. Re2 {[%clk 00:01:12]} {[%emt 00:00:03]} f5 {[%clk
00:00:13]} {[%emt 00:00:10]} 28. Qxe7 {[%emt 00:00:15]} Rxe7 29. exf5 {[%clk
00:01:00]} {[%emt 00:00:02]} Nxf5 {[%clk 00:00:09]} {[%emt 00:00:06]} 30. Rfe1
{[%clk 00:00:52]} {[%emt 00:00:11]} Nfd4 {[%clk 00:00:09]} {[%emt 00:00:04]} 31.
Nxd4 {[%clk 00:00:52]} {[%emt 00:00:01]} Nxd4 {[%clk 00:00:09]} 32. Rxe5 {[%clk
00:00:52]} {[%emt 00:00:01]} Rxe5 {[%clk 00:00:09]} {[%emt 00:00:01]} 33. Rxe5
{[%clk 00:00:52]} Nxc2 {[%clk 00:00:08]} {[%emt 00:00:04]} 34. Rc5 {[%clk
00:00:52]} Nd4 {[%clk 00:00:05]} {[%emt 00:00:06]} 35. Rxc7 {[%clk 00:00:52]}
{[%emt 00:00:02]} b5 {[%clk 00:00:05]} 36. axb5 {[%clk 00:00:47]} {[%emt
00:00:08]} axb5 37. b4 {[%clk 00:00:47]} {[%emt 00:00:02]} Ra8 {[%clk
00:00:05]} {[%emt 00:00:03]} 38. h4 {[%clk 00:00:46]} {[%emt 00:00:03]} Nf5
{[%clk 00:00:05]} {[%emt 00:00:03]} 39. Nxf5 {[%clk 00:00:46]} gxf5 {[%clk
00:00:05]} 40. Rc5 {[%clk 00:00:46]} f4 {[%clk 00:00:05]} {[%emt 00:00:03]} 41.
Rxb5 {[%clk 00:00:46]} {[%emt 00:00:01]} Rd8 {[%clk 00:00:05]} {[%emt
00:00:03]} 42. Rf5 {[%clk 00:00:46]} {[%emt 00:00:01]} Rd4 {[%clk 00:00:05]}
{[%emt 00:00:01]} 43. b5 {[%clk 00:00:46]} Kg7 {[%clk 00:00:05]} 44. b6 {[%clk
00:00:46]} {[%emt 00:00:02]} Kg6 {[%clk 00:00:05]} 45. Rb5 {[%clk 00:00:46]}
Rd8 {[%emt 00:00:03]} 46. b7 1-0

[Event "14e Open International de Quenza"]
[Site "Quenza, France"]
[Date "2025.07.06"]
[Round "9.2"]
[White "Hou, Yifan"]
[Black "Maurizzi, Marc Andria"]
[Result "1-0"]
[TimeControl "5min+3s"]
[WhiteElo "2633"]
[BlackElo "2604"]

1. e4 {[%clk 00:05:03]} c6 {[%clk 00:04:58]} {[%emt 00:00:08]} 2. Nf3 {[%clk
00:05:03]} {[%emt 00:00:03]} d5 {[%clk 00:04:58]} {[%emt 00:00:01]} 3. d3
{[%clk 00:05:03]} g6 {[%clk 00:04:56]} {[%emt 00:00:06]} 4. e5 {[%clk
00:05:02]} {[%emt 00:00:04]} Bg7 {[%clk 00:04:56]} {[%emt 00:00:03]} 5. d4
{[%clk 00:05:02]} f6 {[%clk 00:04:56]} {[%emt 00:00:01]} 6. exf6 {[%clk
00:05:00]} {[%emt 00:00:05]} Nxf6 {[%clk 00:04:54]} {[%emt 00:00:05]} 7. Be2
{[%clk 00:05:00]} {[%emt 00:00:01]} O-O {[%clk 00:04:54]} 8. O-O {[%clk
00:05:00]} {[%emt 00:00:02]} Bf5 {[%clk 00:04:50]} {[%emt 00:00:06]} 9. c4
{[%emt 00:00:07]} Nbd7 {[%clk 00:04:37]} {[%emt 00:00:13]} 10. Nc3 {[%clk
00:04:56]} {[%emt 00:00:05]} e6 {[%clk 00:04:28]} {[%emt 00:00:12]} 11. Nh4
{[%clk 00:04:12]} {[%emt 00:00:48]} Ne4 {[%clk 00:04:08]} {[%emt 00:00:22]} 12.
Nxf5 {[%clk 00:04:10]} {[%emt 00:00:05]} gxf5 {[%clk 00:04:08]} {[%emt
00:00:01]} 13. f3 {[%clk 00:04:04]} {[%emt 00:00:09]} Nd6 {[%clk 00:03:57]}
{[%emt 00:00:14]} 14. cxd5 {[%clk 00:04:01]} {[%emt 00:00:06]} cxd5 {[%clk
00:03:53]} {[%emt 00:00:07]} 15. Bf4 {[%clk 00:03:33]} {[%emt 00:00:31]} Qb6
{[%clk 00:03:53]} {[%emt 00:00:02]} 16. Kh1 {[%clk 00:03:33]} Nf7 {[%clk
00:03:10]} {[%emt 00:00:46]} 17. Nb5 {[%clk 00:03:28]} {[%emt 00:00:08]} Rac8
18. a4 {[%emt 00:00:01]} a6 {[%clk 00:02:45]} {[%emt 00:00:28]} 19. a5 {[%clk
00:03:28]} Qd8 {[%clk 00:02:45]} {[%emt 00:00:02]} 20. Nd6 {[%clk 00:02:24]}
{[%emt 00:01:07]} Nxd6 {[%clk 00:02:38]} {[%emt 00:00:10]} 21. Bxd6 {[%clk
00:02:24]} {[%emt 00:00:01]} Re8 {[%clk 00:02:38]} {[%emt 00:00:01]} 22. Ra4
{[%clk 00:01:56]} {[%emt 00:00:30]} Nb6 {[%clk 00:02:30]} {[%emt 00:00:11]} 23.
Rb4 {[%clk 00:01:49]} {[%emt 00:00:10]} Qxd6 {[%clk 00:02:00]} {[%emt
00:00:33]} 24. Rxb6 {[%clk 00:01:49]} {[%emt 00:00:01]} Qe7 {[%clk 00:02:00]}
25. Re1 {[%clk 00:01:36]} {[%emt 00:00:17]} Rc7 {[%clk 00:01:18]} {[%emt
00:00:45]} 26. f4 {[%clk 00:01:25]} {[%emt 00:00:14]} Qf6 {[%clk 00:01:11]}
{[%emt 00:00:10]} 27. Bf3 {[%clk 00:01:03]} {[%emt 00:00:25]} Qxd4 {[%clk
00:00:32]} {[%emt 00:00:43]} 28. Rbxe6 {[%clk 00:00:31]} {[%emt 00:00:35]} Rxe6
{[%clk 00:00:32]} {[%emt 00:00:03]} 29. Bxd5 {[%clk 00:00:31]} Rce7 {[%clk
00:00:16]} {[%emt 00:00:19]} 30. Qxd4 {[%clk 00:00:24]} {[%emt 00:00:10]} Bxd4
{[%clk 00:00:16]} {[%emt 00:00:01]} 31. Rxe6 {[%clk 00:00:24]} {[%emt
00:00:02]} Rxe6 {[%emt 00:00:04]} 32. Bxe6+ {[%clk 00:00:24]} Kg7 {[%clk
00:00:15]} 33. b3 {[%clk 00:00:14]} {[%emt 00:00:13]} Bc3 {[%clk 00:00:11]}
{[%emt 00:00:07]} 34. Bxf5 {[%clk 00:00:14]} {[%emt 00:00:01]} Bxa5 {[%clk
00:00:11]} 35. Bc8 {[%clk 00:00:14]} h5 {[%clk 00:00:10]} {[%emt 00:00:04]} 36.
g3 {[%clk 00:00:13]} {[%emt 00:00:04]} Kf6 {[%clk 00:00:08]} {[%emt 00:00:06]}
37. Bxb7 {[%clk 00:00:13]} {[%emt 00:00:02]} 1-0

[Event "14e Open International de Quenza"]
[Site "Quenza, France"]
[Date "2025.07.06"]
[Round "9.3"]
[White "Bellahcene, Bilel"]
[Black "Roux, Baptiste"]
[Result "1-0"]
[TimeControl "5min+3s"]
[WhiteElo "2513"]
[BlackElo "2381"]

1. e4 {[%clk 00:05:03]} {[%emt 00:00:02]} c5 {[%clk 00:05:03]} {[%emt
00:00:01]} 2. Nf3 {[%clk 00:05:03]} Nc6 {[%clk 00:05:02]} {[%emt 00:00:05]} 3.
Bb5 {[%clk 00:05:01]} {[%emt 00:00:06]} e6 {[%clk 00:05:02]} {[%emt 00:00:01]}
4. Bxc6 {[%clk 00:05:01]} {[%emt 00:00:02]} bxc6 {[%clk 00:05:02]} {[%emt
00:00:01]} 5. d3 {[%clk 00:05:01]} Ne7 {[%clk 00:05:00]} {[%emt 00:00:05]} 6.
h4 {[%clk 00:05:01]} {[%emt 00:00:03]} h5 {[%clk 00:04:56]} {[%emt 00:00:07]} 7.
Qe2 {[%clk 00:04:55]} {[%emt 00:00:09]} f6 {[%clk 00:04:48]} {[%emt 00:00:11]}
8. b3 {[%clk 00:04:44]} {[%emt 00:00:14]} e5 {[%clk 00:04:19]} {[%emt
00:00:31]} 9. c4 {[%clk 00:04:37]} {[%emt 00:00:10]} d6 {[%clk 00:04:19]}
{[%emt 00:00:02]} 10. Nc3 {[%clk 00:04:37]} {[%emt 00:00:02]} Bg4 {[%clk
00:04:17]} {[%emt 00:00:06]} 11. Qe3 {[%clk 00:04:26]} {[%emt 00:00:14]} Ng6
{[%clk 00:04:13]} {[%emt 00:00:07]} 12. Ng1 {[%clk 00:04:21]} {[%emt 00:00:07]}
Be7 {[%clk 00:03:57]} {[%emt 00:00:19]} 13. g3 {[%clk 00:04:19]} {[%emt
00:00:06]} Qd7 {[%clk 00:03:51]} {[%emt 00:00:10]} 14. f3 {[%clk 00:03:52]}
{[%emt 00:00:30]} Be6 {[%clk 00:03:51]} {[%emt 00:00:02]} 15. Bd2 {[%clk
00:03:28]} {[%emt 00:00:27]} Rb8 {[%clk 00:03:43]} {[%emt 00:00:11]} 16. O-O-O
{[%clk 00:03:27]} {[%emt 00:00:04]} Nf8 {[%clk 00:03:35]} {[%emt 00:00:11]} 17.
Qf2 {[%clk 00:03:09]} {[%emt 00:00:21]} Bf7 {[%clk 00:03:27]} {[%emt 00:00:11]}
18. Nge2 {[%clk 00:03:08]} {[%emt 00:00:05]} Ne6 {[%clk 00:03:27]} {[%emt
00:00:01]} 19. g4 {[%clk 00:03:08]} {[%emt 00:00:02]} Nd4 {[%clk 00:03:22]}
{[%emt 00:00:08]} 20. Rdg1 {[%clk 00:03:07]} {[%emt 00:00:03]} hxg4 {[%clk
00:02:08]} {[%emt 00:01:18]} 21. fxg4 {[%clk 00:03:07]} Kd8 {[%clk 00:01:49]}
{[%emt 00:00:22]} 22. Ng3 {[%clk 00:02:50]} {[%emt 00:00:20]} Be6 {[%clk
00:01:32]} {[%emt 00:00:20]} 23. Nf5 {[%clk 00:02:50]} {[%emt 00:00:03]} g6
{[%clk 00:00:51]} {[%emt 00:00:45]} 24. Nxe7 {[%clk 00:02:50]} {[%emt
00:00:02]} Kxe7 {[%clk 00:00:48]} {[%emt 00:00:05]} 25. Qg2 {[%clk 00:02:24]}
{[%emt 00:00:29]} Rbf8 {[%clk 00:00:45]} {[%emt 00:00:07]} 26. Be3 {[%clk
00:02:18]} {[%emt 00:00:09]} Kd8 {[%clk 00:00:43]} {[%emt 00:00:05]} 27. Kb2
{[%clk 00:01:53]} {[%emt 00:00:28]} Kc7 {[%clk 00:00:43]} {[%emt 00:00:02]} 28.
Na4 {[%clk 00:01:44]} {[%emt 00:00:12]} Rf7 {[%clk 00:00:37]} {[%emt 00:00:09]}
29. Rh3 {[%clk 00:01:39]} {[%emt 00:00:07]} f5 {[%clk 00:00:31]} {[%emt
00:00:10]} 30. gxf5 {[%clk 00:01:10]} {[%emt 00:00:32]} gxf5 {[%clk 00:00:31]}
{[%emt 00:00:01]} 31. exf5 {[%clk 00:01:10]} {[%emt 00:00:01]} Bxf5 {[%clk
00:00:29]} {[%emt 00:00:05]} 32. Rg3 {[%clk 00:01:10]} {[%emt 00:00:04]} Rxh4
{[%clk 00:00:28]} {[%emt 00:00:04]} 33. Qd2 {[%clk 00:01:09]} {[%emt 00:00:03]}
Kb7 {[%clk 00:00:22]} {[%emt 00:00:09]} 34. Rg8 {[%clk 00:00:59]} {[%emt
00:00:14]} Nf3 {[%emt 00:00:08]} 35. Qa5 Qc7 {[%clk 00:00:09]} {[%emt
00:00:10]} 36. Qxc7+ {[%clk 00:00:21]} {[%emt 00:00:41]} Rxc7 {[%clk 00:00:09]}
37. Rf1 {[%clk 00:00:20]} {[%emt 00:00:04]} Rh3 {[%clk 00:00:07]} {[%emt
00:00:05]} 38. Rf8 {[%clk 00:00:18]} {[%emt 00:00:06]} Bg4 {[%clk 00:00:07]} 39.
Ka3 {[%clk 00:00:15]} {[%emt 00:00:05]} Re7 {[%clk 00:00:06]} {[%emt 00:00:04]}
40. b4 {[%clk 00:00:15]} {[%emt 00:00:01]} cxb4+ {[%clk 00:00:06]} {[%emt
00:00:01]} 41. Kxb4 c5+ 42. Ka5 {[%clk 00:00:15]} {[%emt 00:00:02]} Nh2 {[%clk
00:00:06]} {[%emt 00:00:04]} 43. Rb1+ {[%clk 00:00:15]} {[%emt 00:00:02]} Kc7
{[%clk 00:00:06]} {[%emt 00:00:02]} 44. Bg5 {[%clk 00:00:15]} {[%emt 00:00:02]}
Rg7 {[%clk 00:00:06]} {[%emt 00:00:02]} 45. Bd8+ {[%clk 00:00:15]} {[%emt
00:00:02]} Kd7 {[%clk 00:00:06]} 46. Rb7+ {[%clk 00:00:15]} Kc6 {[%clk
00:00:05]} {[%emt 00:00:04]} 47. Rxg7 {[%clk 00:00:15]} {[%emt 00:00:02]} Rxd3
{[%clk 00:00:05]} {[%emt 00:00:01]} 48. Rc7+ {[%clk 00:00:15]} Kd5 {[%emt
00:00:03]} 1-0

[Event "14e Open International de Quenza"]
[Site "Quenza, France"]
[Date "2025.07.06"]
[Round "9.4"]
[White "Lagarde, Maxime"]
[Black "Ratier-Fontana, Matteo"]
[Result "1-0"]
[TimeControl "5min+3s"]
[WhiteElo "2618"]
[BlackElo "2275"]

1. e4 {[%clk 00:05:03]} {[%emt 00:14:53]} d6 {[%clk 00:05:03]} {[%emt
00:00:01]} 2. d4 {[%clk 00:05:03]} {[%emt 00:00:01]} Nf6 {[%clk 00:05:03]}
{[%emt 00:00:01]} 3. Nc3 {[%clk 00:05:03]} {[%emt 00:00:01]} e5 {[%clk
00:05:03]} {[%emt 00:00:02]} 4. Nf3 {[%clk 00:05:00]} {[%emt 00:00:06]} Nbd7
{[%clk 00:05:03]} {[%emt 00:00:02]} 5. h3 {[%clk 00:05:00]} {[%emt 00:00:02]}
Be7 {[%clk 00:04:59]} {[%emt 00:00:07]} 6. g4 {[%clk 00:05:00]} {[%emt
00:00:01]} h6 {[%clk 00:04:59]} {[%emt 00:00:03]} 7. Be3 {[%clk 00:05:00]}
{[%emt 00:00:02]} c6 {[%clk 00:04:57]} {[%emt 00:00:05]} 8. a4 {[%clk
00:05:00]} {[%emt 00:00:01]} Qc7 {[%clk 00:04:55]} {[%emt 00:00:05]} 9. Qd2
{[%clk 00:04:59]} {[%emt 00:00:04]} Nf8 {[%clk 00:04:55]} {[%emt 00:00:03]} 10.
d5 {[%clk 00:04:59]} {[%emt 00:00:02]} Bd7 {[%clk 00:04:10]} {[%emt 00:00:47]}
11. a5 {[%clk 00:04:59]} {[%emt 00:00:02]} cxd5 {[%clk 00:03:56]} {[%emt
00:00:17]} 12. exd5 {[%clk 00:04:59]} {[%emt 00:00:02]} Ng6 {[%clk 00:03:46]}
{[%emt 00:00:13]} 13. Rg1 {[%clk 00:04:35]} {[%emt 00:00:27]} e4 {[%clk
00:03:26]} {[%emt 00:00:22]} 14. Nd4 {[%clk 00:04:32]} {[%emt 00:00:05]} Ne5
{[%clk 00:03:26]} {[%emt 00:00:01]} 15. a6 {[%clk 00:04:26]} {[%emt 00:00:10]}
bxa6 {[%clk 00:03:23]} {[%emt 00:00:06]} 16. Rxa6 {[%clk 00:04:10]} {[%emt
00:00:18]} g5 {[%clk 00:02:29]} {[%emt 00:00:57]} 17. Rg3 {[%clk 00:03:57]}
{[%emt 00:00:16]} Kf8 {[%clk 00:02:27]} {[%emt 00:00:05]} 18. Nc6 {[%clk
00:03:24]} {[%emt 00:00:35]} Nxc6 {[%clk 00:02:07]} {[%emt 00:00:24]} 19. dxc6
{[%clk 00:03:24]} {[%emt 00:00:02]} Bxc6 {[%clk 00:01:53]} {[%emt 00:00:17]} 20.
Bd4 {[%clk 00:03:05]} {[%emt 00:00:22]} Rg8 {[%clk 00:01:28]} {[%emt 00:00:27]}
21. Nb5 {[%clk 00:02:17]} {[%emt 00:00:52]} Qd7 {[%clk 00:01:12]} {[%emt
00:00:20]} 22. c4 {[%clk 00:02:04]} {[%emt 00:00:16]} d5 {[%clk 00:01:08]}
{[%emt 00:00:06]} 23. Bxf6 {[%clk 00:01:23]} {[%emt 00:00:43]} Bxf6 {[%clk
00:01:08]} {[%emt 00:00:01]} 24. cxd5 {[%clk 00:01:23]} {[%emt 00:00:01]} Bxb5
{[%clk 00:01:03]} {[%emt 00:00:08]} 25. Rxf6 {[%clk 00:01:22]} {[%emt
00:00:04]} Bxf1 {[%clk 00:01:03]} {[%emt 00:00:03]} 26. Kxf1 {[%clk 00:01:22]}
{[%emt 00:00:02]} Rg6 {[%clk 00:00:55]} {[%emt 00:00:11]} 27. Rxg6 {[%clk
00:01:19]} {[%emt 00:00:07]} fxg6 {[%clk 00:00:55]} {[%emt 00:00:01]} 28. Qd4
{[%clk 00:01:15]} {[%emt 00:00:06]} Rd8 {[%clk 00:00:42]} {[%emt 00:00:16]} 29.
Qf6+ {[%clk 00:01:15]} {[%emt 00:00:02]} Kg8 {[%clk 00:00:42]} {[%emt
00:00:03]} 30. Qxg6+ {[%clk 00:01:15]} {[%emt 00:00:02]} Qg7 {[%clk 00:00:41]}
{[%emt 00:00:04]} 31. Qxe4 {[%clk 00:01:13]} {[%emt 00:00:05]} Kh8 {[%clk
00:00:26]} {[%emt 00:00:18]} 32. b3 {[%clk 00:00:56]} {[%emt 00:00:20]} Rf8
{[%clk 00:00:19]} {[%emt 00:00:10]} 33. Rf3 {[%clk 00:00:56]} {[%emt 00:00:02]}
Rd8 {[%clk 00:00:11]} {[%emt 00:00:11]} 34. Kg2 {[%clk 00:00:53]} {[%emt
00:00:06]} Rd6 {[%clk 00:00:09]} {[%emt 00:00:05]} 35. Qe8+ {[%clk 00:00:53]}
{[%emt 00:00:02]} 1-0

[Event "14e Open International de Quenza"]
[Site "Quenza, France"]
[Date "2025.07.06"]
[Round "9.5"]
[White "Tomasi, Albert"]
[Black "Terrieux, Kevin"]
[Result "0-1"]
[TimeControl "5min+3s"]
[WhiteElo "2287"]
[BlackElo "2394"]

1. e4 {[%clk 00:05:03]} {[%emt 00:00:02]} c5 {[%clk 00:05:03]} {[%emt
00:00:01]} 2. Nf3 {[%clk 00:05:03]} {[%emt 00:00:01]} d6 {[%clk 00:05:03]}
{[%emt 00:00:01]} 3. d4 {[%clk 00:05:03]} {[%emt 00:00:01]} cxd4 {[%clk
00:05:03]} {[%emt 00:00:02]} 4. Nxd4 {[%clk 00:05:03]} {[%emt 00:00:02]} Nf6
{[%clk 00:05:03]} {[%emt 00:00:01]} 5. Nc3 {[%clk 00:05:03]} {[%emt 00:00:01]}
Bd7 {[%clk 00:05:03]} {[%emt 00:00:02]} 6. g3 {[%clk 00:05:03]} {[%emt
00:00:02]} Nc6 {[%clk 00:05:02]} {[%emt 00:00:05]} 7. Nb3 {[%clk 00:04:58]}
{[%emt 00:00:08]} g6 {[%clk 00:05:02]} {[%emt 00:00:03]} 8. Bg2 {[%clk
00:04:58]} {[%emt 00:00:02]} Bg7 {[%clk 00:05:02]} {[%emt 00:00:03]} 9. O-O
{[%clk 00:04:58]} {[%emt 00:00:03]} Qc8 {[%clk 00:04:41]} {[%emt 00:00:24]} 10.
Re1 {[%clk 00:04:55]} {[%emt 00:00:05]} Bh3 {[%clk 00:04:32]} {[%emt 00:00:13]}
11. Bh1 {[%clk 00:04:55]} {[%emt 00:00:01]} h5 {[%clk 00:04:32]} {[%emt
00:00:03]} 12. Bg5 {[%clk 00:03:40]} {[%emt 00:01:18]} h4 {[%clk 00:04:32]}
{[%emt 00:00:02]} 13. Nd5 {[%clk 00:03:40]} {[%emt 00:00:01]} hxg3 {[%clk
00:04:21]} {[%emt 00:00:14]} 14. hxg3 {[%clk 00:03:03]} {[%emt 00:00:40]} Ng4
{[%clk 00:04:05]} {[%emt 00:00:19]} 15. c3 {[%clk 00:02:04]} {[%emt 00:01:02]}
Rh5 {[%clk 00:03:42]} {[%emt 00:00:27]} 16. Be3 {[%clk 00:01:31]} {[%emt
00:00:37]} Nxe3 {[%clk 00:03:09]} {[%emt 00:00:36]} 17. Nxe3 {[%clk 00:01:17]}
{[%emt 00:00:17]} Ne5 {[%clk 00:03:00]} {[%emt 00:00:11]} 18. Nd4 {[%clk
00:01:14]} {[%emt 00:00:06]} Bh6 {[%clk 00:02:55]} {[%emt 00:00:08]} 19. f4
{[%clk 00:01:11]} {[%emt 00:00:06]} Bg4 {[%clk 00:01:43]} {[%emt 00:01:15]} 20.
Nxg4 {[%clk 00:00:44]} {[%emt 00:00:30]} Nxg4 {[%clk 00:01:43]} {[%emt
00:00:01]} 21. Bf3 {[%clk 00:00:43]} {[%emt 00:00:04]} Rh3 {[%clk 00:01:42]}
{[%emt 00:00:03]} 22. Kg2 {[%clk 00:00:26]} {[%emt 00:00:20]} Rh2+ {[%clk
00:01:30]} {[%emt 00:00:16]} 23. Kg1 {[%clk 00:00:26]} {[%emt 00:00:01]} Nf2
{[%clk 00:01:26]} {[%emt 00:00:07]} 24. Qa4+ {[%clk 00:00:21]} {[%emt
00:00:09]} Kf8 {[%clk 00:01:21]} {[%emt 00:00:08]} 25. Kxh2 {[%clk 00:00:18]}
{[%emt 00:00:06]} Qh3+ {[%clk 00:01:21]} {[%emt 00:00:04]} 26. Kg1 {[%clk
00:00:18]} {[%emt 00:00:01]} Qxg3+ {[%clk 00:01:21]} {[%emt 00:00:02]} 27. Kf1
{[%clk 00:00:15]} {[%emt 00:00:06]} Nd3 {[%clk 00:01:01]} {[%emt 00:00:23]} 28.
Re2 {[%clk 00:00:06]} {[%emt 00:00:13]} Nxf4 {[%clk 00:00:56]} {[%emt
00:00:08]} 29. Qb5 {[%clk 00:00:06]} {[%emt 00:00:02]} e5 {[%clk 00:00:53]}
{[%emt 00:00:06]} 30. Qxb7 {[%clk 00:00:06]} {[%emt 00:00:02]} Re8 {[%clk
00:00:53]} {[%emt 00:00:03]} 31. Bg2 {[%clk 00:00:05]} {[%emt 00:00:04]} exd4
{[%clk 00:00:51]} {[%emt 00:00:05]} 32. cxd4 {[%clk 00:00:05]} {[%emt
00:00:01]} Nxe2 {[%clk 00:00:51]} {[%emt 00:00:03]} 33. Kxe2 {[%emt 00:00:04]}
Qxg2+ {[%emt 00:00:02]} 34. Kd3 {[%emt 00:00:01]} Qf3+ {[%emt 00:00:02]} 0-1